[Event "Early-Titled-Tuesday-Blitz-February-06-2024"]
[Site "Chess.com"]
[Date "2024.02.06"]
[Round "5"]
[White "hmatyi07"]
[Black "MdChess1734"]
[Result "1/2-1/2"]
[WhiteElo "2206"]
[BlackElo "2384"]
[TimeControl "180+1"]
[EndTime "8:57:24 PST"]
[Termination "Game drawn by repetition"]

1. e4 {[%clk 0:03:00.9]} 1... c6 {[%clk 0:02:57.8]} 2. d4 {[%clk 0:03:00.5]}
2... d5 {[%clk 0:02:58.2]} 3. Nc3 {[%clk 0:02:53.8]} 3... dxe4 {[%clk
0:02:57.8]} 4. Nxe4 {[%clk 0:02:54.7]} 4... Nf6 {[%clk 0:02:58.2]} 5. Nxf6+
{[%clk 0:02:54.5]} 5... exf6 {[%clk 0:02:58.6]} 6. Bd3 {[%clk 0:02:54.3]} 6...
Bd6 {[%clk 0:02:58.6]} 7. Qh5 {[%clk 0:02:53]} 7... f5 {[%clk 0:02:50.9]} 8. Ne2
{[%clk 0:02:20.4]} 8... O-O {[%clk 0:02:37.6]} 9. Bd2 {[%clk 0:02:14.3]} 9... g6
{[%clk 0:02:34.3]} 10. Qh6 {[%clk 0:02:11.1]} 10... Qf6 {[%clk 0:02:32.5]} 11.
O-O-O {[%clk 0:02:06.8]} 11... Na6 {[%clk 0:02:30.2]} 12. Bxa6 {[%clk 0:01:57]}
12... bxa6 {[%clk 0:02:30]} 13. Qg5 {[%clk 0:01:54]} 13... Qg7 {[%clk
0:02:23.4]} 14. Qh4 {[%clk 0:01:48.3]} 14... Re8 {[%clk 0:02:19.5]} 15. Bh6
{[%clk 0:01:45.1]} 15... Qh8 {[%clk 0:02:19.3]} 16. Nc3 {[%clk 0:01:42.2]} 16...
Be6 {[%clk 0:02:18.1]} 17. Rhe1 {[%clk 0:01:39.5]} 17... Rab8 {[%clk 0:02:14.6]}
18. h3 {[%clk 0:01:08.9]} 18... Be7 {[%clk 0:02:09.9]} 19. Bg5 {[%clk
0:01:07.1]} 19... Bxg5+ {[%clk 0:01:36.2]} 20. Qxg5 {[%clk 0:01:08]} 20... Red8
{[%clk 0:01:33.9]} 21. Qf4 {[%clk 0:01:02.2]} 21... Rb4 {[%clk 0:01:32.4]} 22.
Qc7 {[%clk 0:00:53.3]} 22... Rdxd4 {[%clk 0:01:08.1]} 23. Qxc6 {[%clk
0:00:51.2]} 23... Qf6 {[%clk 0:01:07.2]} 24. Qxa6 {[%clk 0:00:31.7]} 24... Rdc4
{[%clk 0:01:00.2]} 25. Rd3 {[%clk 0:00:18.8]} 25... Qg5+ {[%clk 0:00:25.4]} 26.
Kb1 {[%clk 0:00:18.6]} 26... Qxg2 {[%clk 0:00:24]} 27. Rxe6 {[%clk 0:00:12]}
27... Rxc3 {[%clk 0:00:20.5]} 28. Re8+ {[%clk 0:00:11.3]} 28... Kg7 {[%clk
0:00:19.2]} 29. a3 {[%clk 0:00:03.6]} 29... Qf1+ {[%clk 0:00:15.8]} 30. Ka2
{[%clk 0:00:03.8]} 30... Rxc2 {[%clk 0:00:06.8]} 31. Rg8+ {[%clk 0:00:04]} 31...
Kxg8 {[%clk 0:00:05.3]} 32. Rd8+ {[%clk 0:00:04.6]} 32... Kg7 {[%clk 0:00:05]}
33. Qxf1 {[%clk 0:00:05.5]} 33... Rbxb2+ {[%clk 0:00:04.5]} 34. Ka1 {[%clk
0:00:05.9]} 34... Ra2+ {[%clk 0:00:05.1]} 35. Kb1 {[%clk 0:00:06.5]} 35... Rcb2+
{[%clk 0:00:04.9]} 36. Kc1 {[%clk 0:00:06.6]} 36... Rc2+ {[%clk 0:00:04.6]} 37.
Kd1 {[%clk 0:00:06.3]} 37... Ra1+ {[%clk 0:00:04.6]} 38. Kxc2 {[%clk 0:00:05.8]}
38... Rxf1 {[%clk 0:00:05.5]} 39. Rd7 {[%clk 0:00:06.7]} 39... Rxf2+ {[%clk
0:00:05.1]} 40. Kb3 {[%clk 0:00:07.4]} 40... Rf3+ {[%clk 0:00:05.2]} 41. Kb4
{[%clk 0:00:07.4]} 41... Rxh3 {[%clk 0:00:05.3]} 42. Rxa7 {[%clk 0:00:08.3]}
42... Rh1 {[%clk 0:00:03.9]} 43. Rd7 {[%clk 0:00:08.2]} 43... Rb1+ {[%clk
0:00:04.7]} 44. Kc3 {[%clk 0:00:08.1]} 44... h5 {[%clk 0:00:05.1]} 45. a4 {[%clk
0:00:08.4]} 45... Rb8 {[%clk 0:00:04.2]} 46. Rd2 {[%clk 0:00:08.6]} 46... h4
{[%clk 0:00:04.2]} 47. a5 {[%clk 0:00:08.1]} 47... g5 {[%clk 0:00:03.5]} 48. Ra2
{[%clk 0:00:08.5]} 48... h3 {[%clk 0:00:03.2]} 49. Kd4 {[%clk 0:00:09.4]} 49...
g4 {[%clk 0:00:02.8]} 50. Ke5 {[%clk 0:00:09.5]} 50... Kg6 {[%clk 0:00:02.9]}
51. Kf4 {[%clk 0:00:10.1]} 51... Rb4+ {[%clk 0:00:02.3]} 52. Kg3 {[%clk
0:00:10]} 52... Kg5 {[%clk 0:00:02.7]} 53. a6 {[%clk 0:00:09.7]} 53... f4+
{[%clk 0:00:02.9]} 54. Kh2 {[%clk 0:00:10.5]} 54... g3+ {[%clk 0:00:03.4]} 55.
Kxh3 {[%clk 0:00:11.1]} 55... Rb8 {[%clk 0:00:04.1]} 56. a7 {[%clk 0:00:11.4]}
56... Ra8 {[%clk 0:00:04.9]} 57. Ra5+ {[%clk 0:00:12.2]} 57... f5 {[%clk
0:00:05.5]} 58. Ra4 {[%clk 0:00:12.8]} 58... Rh8+ {[%clk 0:00:04.6]} 59. Kg2
{[%clk 0:00:12.4]} 59... Ra8 {[%clk 0:00:05.4]} 60. Ra5 {[%clk 0:00:11.4]} 60...
Kg4 {[%clk 0:00:05.5]} 61. Ra4 {[%clk 0:00:12.3]} 61... Rxa7 {[%clk 0:00:05.6]}
62. Rxa7 {[%clk 0:00:12.5]} 62... f3+ {[%clk 0:00:06.1]} 63. Kg1 {[%clk
0:00:13.4]} 63... Kf4 {[%clk 0:00:05.6]} 64. Rb7 {[%clk 0:00:12.5]} 64... Ke3
{[%clk 0:00:05.3]} 65. Rb3+ {[%clk 0:00:12.2]} 65... Ke2 {[%clk 0:00:05.5]} 66.
Rb2+ {[%clk 0:00:12.7]} 66... Ke3 {[%clk 0:00:05.6]} 67. Rb3+ {[%clk 0:00:13.3]}
67... Kf4 {[%clk 0:00:06.3]} 68. Rb4+ {[%clk 0:00:13.2]} 68... Kg5 {[%clk
0:00:06]} 69. Rb3 {[%clk 0:00:12.1]} 69... Kg4 {[%clk 0:00:06.2]} 70. Rb8 {[%clk
0:00:11.5]} 70... Kf4 {[%clk 0:00:05.4]} 71. Rb4+ {[%clk 0:00:11.2]} 71... Kg5
{[%clk 0:00:05.4]} 72. Rb8 {[%clk 0:00:11.2]} 72... Kf4 {[%clk 0:00:05.4]} 73.
Rb4+ {[%clk 0:00:11.3]} 1/2-1/2

[Event "Early-Titled-Tuesday-Blitz-February-06-2024"]
[Site "Chess.com"]
[Date "2024.02.06"]
[Round "5"]
[White "Jospem"]
[Black "Genghis_K"]
[Result "1/2-1/2"]
[WhiteElo "3053"]
[BlackElo "2907"]
[TimeControl "180+1"]
[EndTime "8:57:27 PST"]
[Termination "Game drawn by 50-move rule"]

1. e4 {[%clk 0:03:00.9]} 1... c5 {[%clk 0:02:48.8]} 2. Nf3 {[%clk 0:03:01]} 2...
d6 {[%clk 0:02:47.4]} 3. c3 {[%clk 0:03:01.6]} 3... Nf6 {[%clk 0:02:47.6]} 4. h3
{[%clk 0:03:02.1]} 4... Nc6 {[%clk 0:02:47.4]} 5. Bd3 {[%clk 0:03:02.5]} 5... g5
{[%clk 0:02:48]} 6. Bc2 {[%clk 0:03:02.5]} 6... g4 {[%clk 0:02:47.8]} 7. hxg4
{[%clk 0:03:03.4]} 7... Bxg4 {[%clk 0:02:48.2]} 8. d3 {[%clk 0:03:04.3]} 8... d5
{[%clk 0:02:47.2]} 9. Qe2 {[%clk 0:03:00.9]} 9... dxe4 {[%clk 0:02:32.8]} 10.
dxe4 {[%clk 0:03:01.8]} 10... Qc7 {[%clk 0:02:29.3]} 11. Be3 {[%clk 0:02:58.5]}
11... e6 {[%clk 0:02:19.8]} 12. Nbd2 {[%clk 0:02:58.4]} 12... O-O-O {[%clk
0:02:19.1]} 13. O-O-O {[%clk 0:02:33.2]} 13... h5 {[%clk 0:02:16]} 14. Kb1
{[%clk 0:02:31.3]} 14... Be7 {[%clk 0:02:16]} 15. Bg5 {[%clk 0:02:05.4]} 15...
Rhg8 {[%clk 0:02:10.3]} 16. Qe3 {[%clk 0:02:03.9]} 16... Bxf3 {[%clk 0:01:46.7]}
17. gxf3 {[%clk 0:02:03.9]} 17... Nd5 {[%clk 0:01:44.9]} 18. exd5 {[%clk
0:02:03.3]} 18... Bxg5 {[%clk 0:01:45.1]} 19. Qe2 {[%clk 0:01:59.4]} 19... exd5
{[%clk 0:01:42]} 20. Rxh5 {[%clk 0:01:50.1]} 20... Kb8 {[%clk 0:01:39.4]} 21.
Nb3 {[%clk 0:01:50]} 21... b6 {[%clk 0:01:28.8]} 22. Qb5 {[%clk 0:01:19.8]}
22... Qb7 {[%clk 0:01:13.8]} 23. f4 {[%clk 0:01:08]} 23... a6 {[%clk 0:00:52]}
24. Qf1 {[%clk 0:00:55.3]} 24... Bxf4 {[%clk 0:00:51]} 25. Rhxd5 {[%clk
0:00:52]} 25... Rxd5 {[%clk 0:00:51.6]} 26. Rxd5 {[%clk 0:00:52.9]} 26... Nb4
{[%clk 0:00:45.4]} 27. Rf5 {[%clk 0:00:29.2]} 27... Bh2 {[%clk 0:00:24.8]} 28.
cxb4 {[%clk 0:00:29.2]} 28... Rg1 {[%clk 0:00:24.6]} 29. Qxg1 {[%clk 0:00:29.1]}
29... Bxg1 {[%clk 0:00:24.8]} 30. bxc5 {[%clk 0:00:30]} 30... bxc5 {[%clk
0:00:18.2]} 31. Nxc5 {[%clk 0:00:26.9]} 31... Qe7 {[%clk 0:00:17.7]} 32. a3
{[%clk 0:00:10.4]} 32... Bxf2 {[%clk 0:00:17.7]} 33. Nxa6+ {[%clk 0:00:10.3]}
33... Ka7 {[%clk 0:00:16]} 34. Nb4 {[%clk 0:00:11]} 34... Qe1+ {[%clk
0:00:16.3]} 35. Ka2 {[%clk 0:00:11.4]} 35... Qe6+ {[%clk 0:00:16.4]} 36. Rd5
{[%clk 0:00:11.8]} 36... Bc5 {[%clk 0:00:09.7]} 37. Bb3 {[%clk 0:00:12.1]} 37...
Bxb4 {[%clk 0:00:10.1]} 38. axb4 {[%clk 0:00:11.5]} 38... Qe4 {[%clk 0:00:07.1]}
39. Rd7+ {[%clk 0:00:06.8]} 39... Kb6 {[%clk 0:00:07]} 40. Rxf7 {[%clk
0:00:07.5]} 40... Qxb4 {[%clk 0:00:05.4]} 41. Rf6+ {[%clk 0:00:08]} 41... Kc7
{[%clk 0:00:05.3]} 42. Rf5 {[%clk 0:00:06.9]} 42... Qe4 {[%clk 0:00:04.1]} 43.
Rc5+ {[%clk 0:00:06.8]} 43... Kb6 {[%clk 0:00:04.2]} 44. Rc3 {[%clk 0:00:07.7]}
44... Qa8+ {[%clk 0:00:04.4]} 45. Kb1 {[%clk 0:00:08.3]} 45... Qh1+ {[%clk
0:00:05]} 46. Ka2 {[%clk 0:00:08.1]} 46... Qa8+ {[%clk 0:00:05.3]} 47. Kb1
{[%clk 0:00:08.6]} 47... Qh1+ {[%clk 0:00:05.7]} 48. Rc1 {[%clk 0:00:09.2]}
48... Qe4+ {[%clk 0:00:06.3]} 49. Bc2 {[%clk 0:00:09.9]} 49... Qf4 {[%clk
0:00:06.4]} 50. Rd1 {[%clk 0:00:10.8]} 50... Qe3 {[%clk 0:00:05.9]} 51. Rd3
{[%clk 0:00:10.9]} 51... Qe1+ {[%clk 0:00:06.3]} 52. Ka2 {[%clk 0:00:10.5]}
52... Qa5+ {[%clk 0:00:06]} 53. Ra3 {[%clk 0:00:10.8]} 53... Qd5+ {[%clk
0:00:06.3]} 54. Bb3 {[%clk 0:00:11.4]} 54... Qe5 {[%clk 0:00:03.8]} 55. Bc4
{[%clk 0:00:11.6]} 55... Qd4 {[%clk 0:00:03.9]} 56. Ra4 {[%clk 0:00:11.6]} 56...
Qd1 {[%clk 0:00:03.5]} 57. Ra3 {[%clk 0:00:10.8]} 57... Qd4 {[%clk 0:00:03.6]}
58. Bb3 {[%clk 0:00:11]} 58... Qd2 {[%clk 0:00:03.9]} 59. Ra8 {[%clk 0:00:10.6]}
59... Kb7 {[%clk 0:00:04.1]} 60. Ra4 {[%clk 0:00:09.6]} 60... Qe1 {[%clk
0:00:04.1]} 61. Bd5+ {[%clk 0:00:09]} 61... Kc7 {[%clk 0:00:04.6]} 62. Bc4
{[%clk 0:00:09.5]} 62... Qd2 {[%clk 0:00:04.9]} 63. Ra3 {[%clk 0:00:09.3]} 63...
Qe1 {[%clk 0:00:05.5]} 64. Rc3 {[%clk 0:00:09.7]} 64... Kb6 {[%clk 0:00:05.9]}
65. Bd3 {[%clk 0:00:09.1]} 65... Qe6+ {[%clk 0:00:05.9]} 66. Ka3 {[%clk
0:00:08.4]} 66... Qe7+ {[%clk 0:00:06]} 67. Kb3 {[%clk 0:00:09.3]} 67... Qe6+
{[%clk 0:00:06.5]} 68. Kc2 {[%clk 0:00:10.2]} 68... Qe5 {[%clk 0:00:06.7]} 69.
Rb3+ {[%clk 0:00:10.3]} 69... Kc7 {[%clk 0:00:07.1]} 70. Rb4 {[%clk 0:00:10]}
70... Qh2+ {[%clk 0:00:06.4]} 71. Kb3 {[%clk 0:00:10.2]} 71... Qd2 {[%clk
0:00:06.8]} 72. Rc4+ {[%clk 0:00:11.1]} 72... Kb6 {[%clk 0:00:07.1]} 73. Rc3
{[%clk 0:00:12]} 73... Qd1+ {[%clk 0:00:07.5]} 74. Ka3 {[%clk 0:00:12]} 74...
Qa1+ {[%clk 0:00:07.5]} 75. Kb3 {[%clk 0:00:12.5]} 75... Qd1+ {[%clk 0:00:08]}
76. Ka2 {[%clk 0:00:13]} 76... Qa4+ {[%clk 0:00:08.3]} 77. Ra3 {[%clk
0:00:13.7]} 77... Qd1 {[%clk 0:00:08.5]} 78. Bc4 {[%clk 0:00:13.7]} 78... Qd2
{[%clk 0:00:08.8]} 79. Rc3 {[%clk 0:00:13.3]} 79... Qd4 {[%clk 0:00:07.7]} 80.
Kb3 {[%clk 0:00:12.9]} 80... Qd1+ {[%clk 0:00:08]} 81. Ka2 {[%clk 0:00:13.4]}
81... Qd2 {[%clk 0:00:08.7]} 82. Bb3 {[%clk 0:00:13.3]} 82... Qe1 {[%clk
0:00:09]} 83. Bc2 {[%clk 0:00:10.3]} 83... Qe6+ {[%clk 0:00:08.5]} 84. Bb3
{[%clk 0:00:10.5]} 84... Qe1 {[%clk 0:00:08.5]} 85. Rc4 {[%clk 0:00:10.7]} 85...
Qa5+ {[%clk 0:00:08.5]} 86. Ra4 {[%clk 0:00:11.4]} 86... Qe1 {[%clk 0:00:09.2]}
87. Ra3 {[%clk 0:00:12]} 87... Qd2 {[%clk 0:00:09.5]} 88. Bg8 {[%clk 0:00:11.9]}
88... Qe1 {[%clk 0:00:09.3]} 89. Bc4 {[%clk 0:00:11.9]} 89... Qc1 {[%clk
0:00:09.2]} 90. Bd5 {[%clk 0:00:11.6]} 90... Qd1 {[%clk 0:00:09.3]} 1/2-1/2

[Event "Early-Titled-Tuesday-Blitz-February-06-2024"]
[Site "Chess.com"]
[Date "2024.02.06"]
[Round "5"]
[White "Viktor_Poddubnyi"]
[Black "Dinamo3"]
[Result "1/2-1/2"]
[WhiteElo "2271"]
[BlackElo "2520"]
[TimeControl "180+1"]
[EndTime "8:57:42 PST"]
[Termination "Game drawn by repetition"]

1. e4 {[%clk 0:03:00.4]} 1... c5 {[%clk 0:02:51.5]} 2. Nf3 {[%clk 0:03:00]} 2...
Nc6 {[%clk 0:02:51.5]} 3. d4 {[%clk 0:03:00.3]} 3... cxd4 {[%clk 0:02:52.1]} 4.
Nxd4 {[%clk 0:03:01.2]} 4... g6 {[%clk 0:02:52.7]} 5. c4 {[%clk 0:03:00.6]} 5...
Nf6 {[%clk 0:02:52.7]} 6. Nc3 {[%clk 0:02:59.6]} 6... Nxd4 {[%clk 0:02:53]} 7.
Qxd4 {[%clk 0:03:00.5]} 7... d6 {[%clk 0:02:53.5]} 8. Bg5 {[%clk 0:02:59.3]}
8... Bg7 {[%clk 0:02:53.6]} 9. Be2 {[%clk 0:02:57.9]} 9... O-O {[%clk
0:02:52.3]} 10. Qd2 {[%clk 0:02:57.8]} 10... a5 {[%clk 0:02:46.6]} 11. O-O
{[%clk 0:02:54.1]} 11... a4 {[%clk 0:02:46.8]} 12. Rad1 {[%clk 0:02:46.7]} 12...
Qa5 {[%clk 0:02:44.9]} 13. Bxf6 {[%clk 0:02:41.4]} 13... Bxf6 {[%clk 0:02:38.6]}
14. Nd5 {[%clk 0:02:38.7]} 14... Qxd2 {[%clk 0:02:30.1]} 15. Nxf6+ {[%clk
0:02:38.2]} 15... Kg7 {[%clk 0:02:29.5]} 16. Nh5+ {[%clk 0:02:37.5]} 16... gxh5
{[%clk 0:02:29.4]} 17. Rxd2 {[%clk 0:02:37.8]} 17... Be6 {[%clk 0:02:26.9]} 18.
f4 {[%clk 0:01:54.2]} 18... Rfc8 {[%clk 0:02:23.9]} 19. b3 {[%clk 0:01:43.4]}
19... axb3 {[%clk 0:02:20.2]} 20. axb3 {[%clk 0:01:44.3]} 20... Ra3 {[%clk
0:02:20]} 21. f5 {[%clk 0:01:20.1]} 21... Bd7 {[%clk 0:02:18.7]} 22. f6+ {[%clk
0:01:19]} 22... exf6 {[%clk 0:02:18.9]} 23. Rxd6 {[%clk 0:01:18.4]} 23... Be6
{[%clk 0:02:18.8]} 24. Rb6 {[%clk 0:01:15.8]} 24... Rc7 {[%clk 0:02:09.4]} 25.
Bxh5 {[%clk 0:01:13.3]} 25... Rd7 {[%clk 0:02:09.1]} 26. Rc1 {[%clk 0:00:29.9]}
26... Ra2 {[%clk 0:01:57.6]} 27. Bf3 {[%clk 0:00:26]} 27... Rb2 {[%clk 0:01:58]}
28. b4 {[%clk 0:00:16.2]} 28... Rd4 {[%clk 0:01:41.3]} 29. Rxb7 {[%clk
0:00:13.6]} 29... Bxc4 {[%clk 0:01:41.6]} 30. Rb6 {[%clk 0:00:09.1]} 30... Be6
{[%clk 0:01:17.9]} 31. b5 {[%clk 0:00:06.7]} 31... Rdb4 {[%clk 0:01:18.2]} 32.
Re1 {[%clk 0:00:02]} 32... Rxb5 {[%clk 0:01:02.2]} 33. Rxb5 {[%clk 0:00:02.9]}
33... Rxb5 {[%clk 0:01:03.1]} 34. h3 {[%clk 0:00:03.3]} 34... Kg6 {[%clk
0:01:03]} 35. Kh2 {[%clk 0:00:03.5]} 35... Kg5 {[%clk 0:01:03]} 36. Kg3 {[%clk
0:00:03.9]} 36... Rb3 {[%clk 0:01:02.7]} 37. h4+ {[%clk 0:00:04.1]} 37... Kg6
{[%clk 0:01:03.1]} 38. Kf4 {[%clk 0:00:04.1]} 38... h5 {[%clk 0:01:00.8]} 39.
Rc1 {[%clk 0:00:03.6]} 39... Rb2 {[%clk 0:00:58]} 40. Rc5 {[%clk 0:00:03.3]}
40... Bg4 {[%clk 0:00:56.4]} 41. Bxg4 {[%clk 0:00:02.4]} 41... hxg4 {[%clk
0:00:56.9]} 42. g3 {[%clk 0:00:02.1]} 42... Re2 {[%clk 0:00:57.1]} 43. Rc4
{[%clk 0:00:01.7]} 43... Re1 {[%clk 0:00:31.6]} 44. Kxg4 {[%clk 0:00:02.6]}
44... Re2 {[%clk 0:00:32.2]} 45. Kf4 {[%clk 0:00:02.8]} 45... Re1 {[%clk
0:00:32.6]} 46. Rd4 {[%clk 0:00:03.3]} 46... Rf1+ {[%clk 0:00:33.1]} 47. Kg4
{[%clk 0:00:03.5]} 47... Rg1 {[%clk 0:00:32.9]} 48. Rd5 {[%clk 0:00:03]} 48...
Re1 {[%clk 0:00:32.8]} 49. Kf3 {[%clk 0:00:02.8]} 49... Rf1+ {[%clk 0:00:33.1]}
50. Kg2 {[%clk 0:00:03]} 50... Re1 {[%clk 0:00:33.6]} 51. Kh3 {[%clk 0:00:02.8]}
51... Rxe4 {[%clk 0:00:33.5]} 52. Rc5 {[%clk 0:00:03]} 52... Rd4 {[%clk
0:00:32.5]} 53. Rb5 {[%clk 0:00:03.2]} 53... Rd3 {[%clk 0:00:32.9]} 54. Rc5
{[%clk 0:00:03.5]} 54... f5 {[%clk 0:00:32.5]} 55. Kg2 {[%clk 0:00:03.3]} 55...
f6 {[%clk 0:00:32.9]} 56. Rb5 {[%clk 0:00:03.5]} 56... Rc3 {[%clk 0:00:33.2]}
57. Rd5 {[%clk 0:00:03.4]} 57... Rc2+ {[%clk 0:00:33.8]} 58. Kh3 {[%clk
0:00:03.1]} 58... Ra2 {[%clk 0:00:34.4]} 59. Rc5 {[%clk 0:00:03]} 59... Ra3
{[%clk 0:00:34.8]} 60. Kg2 {[%clk 0:00:03.4]} 60... Rb3 {[%clk 0:00:34.8]} 61.
Kf2 {[%clk 0:00:02.8]} 61... Rd3 {[%clk 0:00:33.4]} 62. Rb5 {[%clk 0:00:02.8]}
62... Rd2+ {[%clk 0:00:33.7]} 63. Kf3 {[%clk 0:00:02.9]} 63... Ra2 {[%clk
0:00:33.2]} 64. Rc5 {[%clk 0:00:02.3]} 64... Ra3+ {[%clk 0:00:32]} 65. Kg2
{[%clk 0:00:02.8]} 65... Rd3 {[%clk 0:00:31.6]} 66. Rb5 {[%clk 0:00:02.8]} 66...
Rd4 {[%clk 0:00:31.6]} 67. Rc5 {[%clk 0:00:02.8]} 67... Rg4 {[%clk 0:00:31.8]}
68. Rb5 {[%clk 0:00:02.2]} 68... Ra4 {[%clk 0:00:28.8]} 69. Kf3 {[%clk
0:00:01.8]} 69... Ra3+ {[%clk 0:00:28.2]} 70. Kg2 {[%clk 0:00:02.7]} 70... Ra2+
{[%clk 0:00:28]} 71. Kh3 {[%clk 0:00:03.3]} 71... Rf2 {[%clk 0:00:27.6]} 72. Rc5
{[%clk 0:00:03.5]} 72... Kf7 {[%clk 0:00:27.9]} 73. h5 {[%clk 0:00:02.4]} 73...
Kg7 {[%clk 0:00:27.9]} 74. Rc4 {[%clk 0:00:02.4]} 74... Kh6 {[%clk 0:00:27.6]}
75. Rh4 {[%clk 0:00:02.8]} 75... Ra2 {[%clk 0:00:27.7]} 76. Rf4 {[%clk
0:00:02.3]} 76... Kg5 {[%clk 0:00:27.2]} 77. h6 {[%clk 0:00:02.1]} 77... Ra8
{[%clk 0:00:26]} 78. Rh4 {[%clk 0:00:01.7]} 78... Rh8 {[%clk 0:00:25.8]} 79. h7
{[%clk 0:00:01.7]} 79... Kg6 {[%clk 0:00:26.3]} 80. Kg2 {[%clk 0:00:01.9]} 80...
Rxh7 {[%clk 0:00:26.2]} 81. Rxh7 {[%clk 0:00:01.9]} 81... Kxh7 {[%clk
0:00:26.8]} 82. Kf3 {[%clk 0:00:02.4]} 82... Kh6 {[%clk 0:00:27.4]} 83. Kf4
{[%clk 0:00:02.2]} 83... Kg6 {[%clk 0:00:27.9]} 84. g4 {[%clk 0:00:02.6]} 84...
fxg4 {[%clk 0:00:28.1]} 85. Kxg4 {[%clk 0:00:03.5]} 85... Kf7 {[%clk 0:00:29]}
86. Kf4 {[%clk 0:00:04.4]} 86... Ke7 {[%clk 0:00:29.9]} 87. Ke4 {[%clk
0:00:04.9]} 87... Ke6 {[%clk 0:00:30.5]} 88. Kf4 {[%clk 0:00:05.5]} 88... f5
{[%clk 0:00:31.1]} 89. Kf3 {[%clk 0:00:05.7]} 89... Ke5 {[%clk 0:00:32]} 90. Ke3
{[%clk 0:00:06.6]} 90... f4+ {[%clk 0:00:32.9]} 91. Kf3 {[%clk 0:00:07.3]} 91...
Kf5 {[%clk 0:00:33.8]} 92. Kf2 {[%clk 0:00:07.8]} 92... Ke4 {[%clk 0:00:34.7]}
93. Ke2 {[%clk 0:00:08.2]} 93... f3+ {[%clk 0:00:35.6]} 94. Kf1 {[%clk
0:00:08.5]} 94... Kf4 {[%clk 0:00:36.5]} 95. Kf2 {[%clk 0:00:08.9]} 95... Kg4
{[%clk 0:00:36.9]} 96. Kf1 {[%clk 0:00:09.8]} 96... Kg3 {[%clk 0:00:37.8]} 97.
Kg1 {[%clk 0:00:10.1]} 97... Kh3 {[%clk 0:00:38.4]} 98. Kf2 {[%clk 0:00:10.2]}
98... Kg4 {[%clk 0:00:39.3]} 99. Kf1 {[%clk 0:00:10.5]} 99... Kf4 {[%clk
0:00:40.2]} 100. Kf2 {[%clk 0:00:10.8]} 100... Ke4 {[%clk 0:00:40.8]} 101. Kf1
{[%clk 0:00:11.2]} 101... Ke3 {[%clk 0:00:41.7]} 102. Ke1 {[%clk 0:00:11.5]}
102... Kd3 {[%clk 0:00:42.2]} 103. Kf2 {[%clk 0:00:11.7]} 103... Ke4 {[%clk
0:00:43.1]} 104. Kf1 {[%clk 0:00:12.3]} 1/2-1/2